bitfinex/quotes_ETHUSD_20251111
["timestamp","ask_amount","ask_price","bid_price","bid_amount"]
[1762889526220,4.8305699,3469.3,3469.2,15.0]
[1762889526377,4.8305699,3469.3,3469.2,14.5]
[1762889527281,4.8305699,3469.3,3469.2,15.0]
[1762889527282,0.36360326,3469.3,3469.2,15.0]
[1762889527605,0.36720326,3469.3,3469.2,16.85496413]
[1762889527911,0.36720326,3469.3,3469.2,15.0]
[1762889528704,0.81450326,3469.3,3469.2,15.0]
[1762889529077,0.36720326,3469.3,3469.2,15.0]
[1762889529278,0.26900326,3469.3,3469.2,15.0]
[1762889529491,0.26900326,3469.3,3469.2,20.33246893]
[1762889529686,0.26900326,3469.3,3469.2,17.44996]
[1762889529901,0.36360326,3469.3,3469.2,16.99296]
[1762889530127,0.36360326,3469.3,3469.2,19.87546893]
[1762889530517,0.36360326,3469.3,3469.2,16.99296]
[1762889530826,0.81440326,3469.3,3469.2,16.99296]
[1762889531198,0.81440326,3469.3,3469.2,15.0]
[1762889531392,0.81440326,3469.3,3469.2,14.5]
[1762889531726,1.94814406,3469.3,3469.2,14.5]
[1762889531901,4.8305699,3469.3,3469.2,14.5]
[1762889532102,4.01683147,3468.5,3468.4,3.796]
[1762889532304,4.01683147,3468.5,3468.3,0.001]
[1762889532305,9.06537741,3468.4,3468.3,0.001]
[1762889532503,9.78878067,3468.4,3468.3,0.001]
[1762889532711,6.90560688,3468.4,3468.3,0.001]
[1762889533045,9.78878067,3468.4,3468.3,0.001]
[1762889534225,9.78878067,3468.4,3467.9,0.001]
[1762889534226,2.88350634,3468.0,3467.9,0.001]
[1762889534530,9.13547242,3468.0,3467.9,0.001]
[1762889534695,9.22927242,3468.0,3467.9,0.001]
[1762889534898,4.3685096,3468.0,3467.9,0.001]
[1762889536095,1.48500326,3468.0,3467.9,0.001]
[1762889536298,1.39120326,3468.0,3467.9,0.001]
[1762889536494,0.26900326,3468.0,3467.9,0.501]
[1762889536711,0.72060326,3468.0,3467.9,0.501]
[1762889536932,0.72060326,3468.0,3467.9,15.001]
[1762889538462,3.7015096,3468.0,3467.9,14.501]
[1762889539011,1.95174406,3468.0,3467.9,14.501]
[1762889539218,3.7015096,3468.0,3467.9,14.501]
[1762889539437,4.8352504,3468.0,3467.9,14.501]
[1762889539951,1.95174406,3468.0,3467.9,14.501]
[1762889540819,4.8352504,3468.0,3467.9,14.501]
[1762889541021,1.95174406,3468.0,3467.9,14.501]
[1762889541722,1.95174406,3468.0,3467.9,0.001]
[1762889541918,4.8352504,3468.0,3467.9,0.001]
[1762889542473,1.95174406,3468.0,3467.9,0.001]
[1762889542767,4.8352504,3468.0,3467.9,0.001]
[1762889543623,5.5022504,3468.0,3467.9,0.001]
[1762889544941,2.61874406,3468.0,3467.9,0.001]
[1762889545142,2.52134406,3468.0,3467.9,0.001]
[1762889545362,1.85434406,3468.0,3467.9,0.001]
[1762889546026,4.7378504,3468.0,3467.9,0.001]
[1762889547541,1.85434406,3468.0,3467.9,0.001]
[1762889547864,4.99972481,3468.0,3467.9,0.001]
[1762889548034,2.21361847,3468.0,3467.9,0.001]
[1762889548239,5.09712481,3468.0,3467.9,0.001]
[1762889548863,2.21361847,3468.0,3467.9,0.001]
[1762889549064,5.09712481,3468.0,3467.9,0.001]
[1762889549423,5.09712481,3468.0,3467.9,3.35828949]
[1762889549424,1.40274406,3468.0,3467.9,3.35828949]
[1762889549628,1.40274406,3468.0,3467.9,4.30898949]
[1762889549839,0.26900326,3468.0,3467.9,4.30898949]
[1762889550043,1.1337408,3468.4,3468.3,0.5]
[1762889550354,3.15199874,3468.4,3468.3,0.5]
[1762889550550,2.8833156,3468.3,3467.9,0.001]
[1762889550757,0.26882495,3468.2,3468.1,0.5]
[1762889550956,0.26882495,3468.2,3468.1,15.0]
[1762889551555,0.26882495,3468.2,3468.1,19.77786587]
[1762889551755,0.26882495,3468.2,3468.1,20.18336987]
[1762889551959,0.667,3469.2,3468.8,0.5]
[1762889552158,0.26885635,3469.1,3468.8,0.5]
[1762889552354,0.26885635,3469.0,3468.8,0.5]
[1762889552569,0.26885635,3468.9,3468.8,0.5]
[1762889552974,4.54825537,3468.9,3468.8,0.5]
[1762889553154,2.88284132,3468.8,3468.3,0.667]
[1762889553356,2.62640935,3468.9,3468.3,0.667]
[1762889553357,0.4657,3468.4,3468.3,0.667]
[1762889553557,0.4657,3468.4,3468.3,1.167]
[1762889553558,0.26885635,3468.4,3468.3,1.167]
[1762889553757,0.26885635,3468.4,3468.3,1.6407]
[1762889554204,0.26885635,3468.4,3468.3,1.167]
[1762889554372,3.63583014,3468.4,3468.3,1.167]
[1762889554558,0.75265635,3468.4,3468.3,1.167]
[1762889557253,2.83588484,3468.7,3468.3,0.5]
[1762889557458,0.26911497,3468.6,3468.3,0.5]
[1762889557685,2.83588484,3468.7,3468.3,0.5]
[1762889558388,2.83588484,3468.7,3468.1,15.3558]
[1762889558389,5.01916651,3468.5,3468.1,15.167]
[1762889558594,2.8832579,3468.3,3468.1,15.167]
[1762889559390,2.88320382,3468.4,3468.1,15.167]
[1762889559594,7.90226718,3468.5,3468.1,15.167]
[1762889559918,2.88332182,3468.3,3468.1,15.167]
[1762889560477,2.88332182,3468.3,3468.1,14.5]
[1762889560676,2.88334006,3468.2,3468.1,14.5]
[1762889561197,9.03624737,3468.2,3468.1,14.5]
[1762889561396,9.70324737,3468.2,3468.1,14.5]
[1762889562806,1.8007408,3468.2,3468.1,14.5]
[1762889563009,1.1337408,3468.2,3468.1,14.9737]
[1762889563212,1.1337408,3468.2,3468.1,16.1132]
[1762889563579,1.1337408,3468.4,3468.3,0.5]
[1762889564383,2.88317379,3468.4,3468.3,0.5]
[1762889564582,1.1337408,3468.4,3468.3,0.5]
[1762889565003,2.88317379,3468.4,3468.3,0.5]
[1762889565607,2.88334006,3468.2,3468.1,14.5]
[1762889565807,4.01724714,3468.0,3467.9,0.001]
[1762889566117,4.68424714,3468.0,3467.9,0.001]
[1762889566917,0.11545327,3468.5,3468.0,2.88344804]
[1762889567216,0.336,3468.6,3467.9,0.001]
[1762889567421,0.336,3468.6,3467.9,0.501]
[1762889567626,2.8834942,3468.1,3467.9,0.001]
[1762889567935,2.88350634,3468.0,3467.9,0.001]
[1762889568158,4.37249777,3468.0,3467.9,0.001]
[1762889569424,4.64193153,3468.0,3467.9,0.001]
[1762889570308,2.8837558,3467.7,3467.6,0.001]
[1762889570504,5.08343036,3467.7,3467.6,0.001]
[1762889570703,5.69617973,3467.7,3467.6,0.001]
[1762889572238,5.56867973,3467.7,3467.6,0.001]
[1762889572901,5.69617973,3467.7,3467.6,0.001]
[1762889574527,5.56867973,3467.7,3467.6,0.001]
[1762889580330,2.07217456,3467.7,3467.6,0.001]
[1762889580531,4.95593036,3467.7,3467.6,0.001]
[1762889580835,5.08343036,3467.7,3467.6,0.001]
[1762889582438,5.21093036,3467.7,3467.6,0.001]
[1762889583453,5.08343036,3467.7,3467.6,0.001]
[1762889584371,2.07217456,3467.7,3467.6,0.001]
[1762889584571,4.95593036,3467.7,3467.6,0.469]
[1762889584734,4.95593036,3467.7,3467.6,0.001]
[1762889584930,5.21093036,3467.7,3467.6,0.001]
[1762889585232,1.40317456,3467.7,3467.6,0.9201]
[1762889585437,0.26943376,3467.7,3467.6,4.30393896]
[1762889585769,0.78346227,3468.3,3468.0,0.5]
[1762889585970,0.668,3468.3,3468.2,0.6528]
[1762889586198,3.82011863,3468.3,3468.2,0.6528]
[1762889586373,2.07060251,3468.3,3468.2,1.1039]
[1762889587939,4.01708086,3468.2,3468.1,14.5]
[1762889588291,4.0174966,3467.7,3467.6,0.001]
[1762889588438,5.08185831,3467.7,3467.6,0.001]
[1762889588635,5.20935831,3467.7,3467.6,0.001]
[1762889588840,5.54171405,3467.7,3467.6,0.001]
[1762889589470,5.41421405,3467.7,3467.6,0.001]
[1762889589674,5.41441134,3467.7,3467.6,0.001]
[1762889592893,5.28691134,3467.7,3467.6,0.001]
[1762889593054,2.07092077,3467.7,3467.6,0.469]
[1762889593259,4.95467657,3467.7,3467.6,0.9201]
[1762889593468,4.95467657,3467.7,3467.6,14.969]
[1762889593759,1.40292077,3467.7,3467.6,15.9201]
[1762889594161,0.26917997,3467.7,3467.6,15.9201]
[1762889594472,0.26917997,3467.7,3467.6,20.97294119]
[1762889595069,0.26917997,3467.7,3467.6,18.08910223]
[1762889598401,0.26917997,3467.7,3467.6,20.97294119]
[1762889599399,0.26917997,3467.7,3467.6,18.08910223]
[1762889599699,0.26917997,3467.7,3467.6,20.97294119]
[1762889599902,0.26917997,3467.7,3467.6,18.08910223]
[1762889600082,0.26917997,3467.7,3467.6,20.97294119]
[1762889600265,0.26917997,3467.7,3467.6,18.08910223]
[1762889600466,0.26917997,3467.7,3467.6,20.97294119]
[1762889601587,0.26917997,3467.7,3467.6,21.64094119]
[1762889601791,0.002,3468.3,3468.2,2.88334006]
[1762889601973,0.27120443,3468.3,3468.2,5.73192413]
[1762889602168,0.27120443,3468.3,3468.2,2.84858407]
[1762889602502,0.27120443,3468.3,3468.2,16.7719]
[1762889602903,0.27120443,3468.3,3468.2,19.65524006]
[1762889606235,0.27120443,3468.3,3468.2,16.7719]
[1762889606806,0.27120443,3468.3,3468.2,19.65524006]
[1762889607000,0.27120443,3468.3,3468.2,16.7719]
[1762889607235,0.27120443,3468.3,3468.2,22.28871746]
[1762889608028,0.27120443,3468.3,3468.2,19.4053774]
[1762889608532,0.27120443,3468.3,3468.2,22.28871746]
[1762889609098,0.27120443,3468.3,3468.2,19.4053774]
[1762889609398,0.27120443,3468.3,3468.2,22.28871746]
[1762889610901,0.27120443,3468.3,3468.2,19.4043774]
[1762889611229,0.27120443,3468.3,3468.2,22.28771746]
[1762889611436,0.27120443,3468.3,3468.2,19.4043774]
[1762889611806,0.27120443,3468.3,3468.2,22.28771746]
[1762889612833,0.002,3468.3,3468.2,22.28771746]
[1762889613348,0.002,3468.3,3468.2,26.08371746]
[1762889614155,0.002,3468.3,3468.2,23.2003774]
[1762889614358,0.002,3468.3,3468.2,26.08371746]
[1762889624841,0.002,3468.3,3468.2,25.41671746]
[1762889625037,0.002,3468.3,3468.2,26.08371746]
[1762889625254,0.27137479,3468.3,3468.2,26.08371746]
[1762889625784,0.002,3468.3,3468.2,26.08371746]
[1762889627242,0.27145662,3468.3,3468.2,26.08371746]
[1762889633980,0.27145662,3468.3,3468.2,26.48922146]
[1762889634867,0.002,3468.3,3468.2,27.21773777]
[1762889635069,0.002,3468.3,3468.2,27.74840946]
[1762889635273,0.002,3468.3,3468.2,27.40696254]
[1762889639653,0.002,3468.3,3468.2,27.01989315]
[1762889641193,0.002,3468.3,3468.2,28.15363395]
[1762889641358,0.002,3468.7,3468.6,3.28851155]
[1762889641558,0.002,3468.7,3468.6,9.3311884]
[1762889641760,0.002,3468.7,3468.6,10.32136009]
[1762889642081,0.002,3468.7,3468.6,24.82136009]
[1762889645305,0.002,3468.7,3468.6,23.6236884]
[1762889645460,0.002,3468.7,3468.6,24.2896884]
[1762889648067,0.002,3468.7,3468.6,23.8301884]
[1762889648272,0.002,3468.7,3468.6,23.3676884]
[1762889648468,0.002,3468.7,3468.6,22.7016884]
[1762889648692,0.1295,3468.7,3468.6,23.3676884]
[1762889648989,0.257,3468.7,3468.6,15.0]
[1762889649192,0.257,3468.7,3468.6,15.666]
[1762889649390,0.52558938,3468.7,3468.6,15.0]
[1762889649591,3.40851381,3468.7,3468.6,14.5]
[1762889649758,0.52558938,3468.7,3468.6,14.5]
[1762889652442,0.39808938,3468.7,3468.6,14.5]
[1762889652724,0.39808938,3468.7,3468.6,15.0]
[1762889655422,0.39808938,3468.7,3468.6,17.88300755]
[1762889655629,0.27058938,3468.7,3468.6,18.34550755]
[1762889655813,0.27058938,3468.7,3468.6,21.37407564]
[1762889656014,0.002,3468.7,3468.6,21.37407564]
[1762889656224,0.002,3468.7,3468.6,17.56906809]
[1762889656424,0.27068275,3468.7,3468.6,17.56906809]
[1762889656625,0.27068275,3468.7,3468.6,17.88300755]
[1762889656834,0.39818275,3468.7,3468.6,17.88300755]
[1762889657134,0.39818275,3468.7,3468.6,18.54900755]
[1762889657721,0.39818275,3468.7,3468.6,15.0]
[1762889657902,0.52568275,3468.7,3468.6,15.666]
[1762889658528,0.52568275,3468.7,3468.6,15.166]
[1762889658723,0.52568275,3468.7,3468.6,14.5]
[1762889659123,5.26421653,3468.7,3468.5,0.5]
[1762889659323,2.88317379,3468.4,3468.3,0.001]
[1762889659501,9.94513112,3468.4,3468.3,0.001]
[1762889659702,10.07263112,3468.4,3468.3,0.001]
[1762889661200,5.20659734,3468.4,3468.3,0.001]
[1762889661429,10.07263112,3468.4,3468.3,0.001]
[1762889661933,14.9386649,3468.4,3468.3,0.001]
[1762889662131,14.9386649,3468.4,3467.9,0.001]
[1762889662132,2.88350634,3468.0,3467.9,0.001]
[1762889662307,14.14549745,3468.0,3467.9,0.001]
[1762889662514,14.27299745,3468.0,3467.9,0.001]
[1762889662919,14.93899745,3468.0,3467.9,0.001]
[1762889665619,10.07296367,3468.0,3467.9,0.001]
[1762889666442,1.52992355,3468.0,3467.9,0.001]
[1762889667116,6.39595733,3468.0,3467.9,14.501]
[1762889667312,9.27946367,3468.0,3467.9,14.501]
[1762889667535,6.39595733,3468.0,3467.9,14.501]
[1762889668041,9.27946367,3468.0,3467.9,14.501]
[1762889668243,9.40696367,3468.0,3467.9,14.501]
[1762889669744,6.52345733,3468.0,3467.9,14.501]
[1762889670038,6.39595733,3468.0,3467.9,14.501]
[1762889671142,9.27946367,3468.0,3467.9,14.501]
[1762889671310,9.01078092,3468.0,3467.9,14.501]
[1762889671510,9.2783288,3468.0,3467.9,14.501]
[1762889673327,9.4058288,3468.0,3467.9,14.501]
[1762889673528,14.27186258,3468.0,3467.9,14.501]
[1762889673860,9.4058288,3468.0,3467.9,14.501]
[1762889674645,9.4058288,3468.0,3467.9,0.001]
[1762889675448,14.27186258,3468.0,3467.9,0.001]
[1762889676552,4.01733029,3467.9,3467.8,0.001]
[1762889676753,5.20587817,3467.9,3467.8,0.001]
[1762889676965,13.74956416,3467.7,3467.6,0.001]
[1762889677247,14.14461204,3467.7,3467.5,0.001]
[1762889677450,5.20612764,3467.6,3467.5,0.001]
[1762889677815,5.20612764,3467.6,3467.1,0.001]
[1762889677816,4.01791246,3467.2,3467.1,0.001]
[1762889678049,10.10367998,3467.2,3467.1,0.001]
[1762889678247,10.23117998,3467.2,3467.1,0.001]
[1762889679146,10.23217998,3467.2,3467.1,0.001]
[1762889682121,11.09839457,3467.2,3467.1,0.001]
[1762889684545,11.09839457,3467.2,3466.1,15.1675]
[1762889684752,1.1337408,3466.3,3466.1,1.1675]
[1762889684966,0.26754788,3466.2,3466.1,1.1675]
[1762889685149,3.15255163,3466.2,3466.1,1.1675]
[1762889685333,3.15255163,3466.2,3466.1,0.6649]
[1762889685734,3.15255163,3466.2,3466.1,14.9697]
[1762889685959,0.26754788,3466.2,3466.1,14.9697]
[1762889686966,3.15225805,3466.2,3466.1,14.9697]
[1762889687184,4.01874455,3466.2,3466.1,14.5]
[1762889687336,10.23283997,3466.2,3466.1,14.5]
[1762889687536,10.10533997,3466.2,3466.1,14.5]
[1762889688248,10.10533997,3466.2,3465.8,0.001]
[1762889688249,2.88525346,3465.9,3465.8,0.001]
[1762889688567,8.17734888,3465.9,3465.8,0.001]
[1762889688732,9.43858968,3465.9,3465.8,0.001]
[1762889688931,10.10558968,3465.9,3465.8,0.001]
[1762889691172,10.10555221,3465.9,3465.8,0.001]
[1762889691463,10.23305221,3465.9,3465.8,0.001]
[1762889692033,10.10555221,3465.9,3465.8,0.001]
[1762889692357,10.23305221,3465.9,3465.8,0.001]
[1762889692933,10.10536289,3465.9,3465.8,0.001]
[1762889694832,9.97786289,3465.9,3465.8,0.001]
[1762889695178,9.97786289,3465.9,3465.8,0.943]
[1762889695858,7.09260943,3465.9,3465.8,0.943]
[1762889696232,9.97786289,3465.9,3465.8,0.943]
[1762889697173,10.10536289,3465.9,3465.8,0.001]
[1762889698071,9.97786289,3465.9,3465.8,0.001]
[1762889699286,7.09260943,3465.9,3465.8,0.4555]
[1762889699584,9.97786289,3465.9,3465.8,0.9384]
[1762889700148,9.97786289,3465.9,3465.8,0.4555]
[1762889700549,1.40088979,3465.9,3465.8,1.4384]
[1762889700762,1.40088979,3465.9,3465.8,1.93778598]
[1762889701067,1.40088979,3465.9,3465.8,1.4384]
[1762889703094,1.40088979,3465.9,3465.8,15.9384]
[1762889704795,0.26714899,3465.9,3465.8,15.9384]
[1762889704954,0.26714899,3465.9,3465.8,18.82373671]
[1762889706152,0.26714899,3465.9,3465.8,15.9384]
[1762889706592,0.26714899,3465.9,3465.8,18.82373671]
[1762889706792,0.26714899,3465.9,3465.8,20.77311038]
[1762889706987,0.26714899,3465.9,3465.8,17.88777367]
[1762889707232,0.26714899,3465.9,3465.8,20.77311038]
[1762889708295,0.26714899,3465.9,3465.8,21.44011038]
[1762889709333,0.26714899,3465.9,3465.8,15.4555]
[1762889709534,0.26714899,3465.9,3465.8,14.501]
[1762889709829,3.15440245,3465.9,3465.8,14.501]
[1762889710215,3.15440245,3465.9,3465.8,14.9555]
[1762889711031,3.15440245,3465.9,3465.8,14.501]
[1762889711529,3.15440245,3465.9,3465.8,14.9555]
[1762889712228,0.26914899,3465.9,3465.8,14.9555]
[1762889712797,3.15440245,3465.9,3465.8,14.9555]
[1762889713197,0.26914899,3465.9,3465.8,14.501]
[1762889713393,3.15440245,3465.9,3465.8,14.501]
[1762889713630,4.41564325,3465.9,3465.8,14.501]
[1762889714817,4.28814325,3465.9,3465.8,14.501]
[1762889715021,3.78814325,3465.9,3465.8,14.501]
[1762889715830,4.01916077,3465.7,3465.5,0.001]
[1762889716136,4.01932729,3465.5,3465.4,0.001]
[1762889716434,4.01932729,3465.5,3464.0,0.1952]
[1762889716435,4.01974368,3465.0,3464.0,0.1952]
[1762889716596,9.83896332,3465.0,3464.0,0.1952]
[1762889716797,9.96646332,3465.0,3464.0,0.1952]
[1762889716997,4.01982697,3464.9,3463.7,14.5]
[1762889717304,4.01999357,3464.7,3463.7,14.5]
[1762889717497,2.88641939,3464.5,3463.7,14.5]
[1762889717694,4.14766019,3464.5,3463.7,14.5]
[1762889717899,4.76926794,3464.5,3463.7,14.5]
[1762889718298,2.88733339,3463.5,3462.9,0.5]
[1762889718639,7.91216144,3463.3,3462.9,0.9829]
[1762889718864,7.91216144,3463.3,3463.0,14.5]
[1762889719065,9.04590224,3463.3,3463.2,0.4545]
[1762889720103,6.15846044,3463.3,3463.2,0.4545]
[1762889720953,9.04587995,3463.3,3463.2,0.4545]
[1762889721109,6.15846044,3463.3,3463.2,0.4545]
[1762889721555,9.04587995,3463.3,3463.2,0.4545]
[1762889722155,6.15846044,3463.3,3463.2,14.9545]
[1762889722357,9.04587995,3463.3,3463.2,14.9545]
[1762889722558,8.54587995,3463.3,3463.2,14.9545]
[1762889722836,6.15846044,3463.3,3463.2,14.9545]
[1762889723052,9.04587995,3463.3,3463.2,14.9545]
[1762889723461,6.15846044,3463.3,3463.2,14.9545]
[1762889723771,9.04587995,3463.3,3463.2,14.9545]
[1762889724333,6.15846044,3463.3,3463.2,15.4374]
[1762889724673,0.49410775,3464.5,3463.2,19.88859775]
[1762889724877,6.15846044,3464.2,3463.6,0.5]
[1762889725171,6.15846044,3464.2,3463.6,0.667]
[1762889725350,5.02471964,3464.2,3464.1,0.6544]
[1762889725547,5.02471964,3464.2,3464.1,15.1544]
[1762889725751,5.02471964,3464.2,3464.1,15.6396]
[1762889725949,6.15846044,3464.2,3464.1,15.6396]
[1762889726137,6.15846044,3464.2,3464.1,14.5]
[1762889726338,6.15846044,3464.2,3464.1,14.9862]
[1762889727075,6.426339,3464.2,3464.1,14.9862]
[1762889727273,6.426339,3464.2,3464.1,15.6595]
[1762889730594,6.426339,3464.2,3464.1,15.6595]
[1762889732295,6.426339,3464.2,3464.1,15.1743]
[1762889732954,6.426339,3464.2,3464.1,15.6595]
[1762889733851,9.31300836,3464.2,3464.1,15.6595]
[1762889734088,9.31300836,3464.2,3464.1,14.9862]
[1762889734286,6.426339,3464.2,3464.1,14.9862]
[1762889734585,6.426339,3464.2,3464.1,0.4862]
[1762889734586,9.31300836,3464.2,3464.1,0.4862]
[1762889734885,1.1337408,3464.1,3463.2,0.5]
[1762889735077,5.02471964,3463.4,3463.3,14.5]
[1762889735467,5.02471964,3463.4,3463.3,15.4714]
[1762889736632,2.88744075,3463.3,3462.9,0.4852]
[1762889736801,3.15397377,3463.2,3463.0,0.5]
[1762889737003,8.03626806,3463.2,3463.0,0.5]
[1762889737188,5.14876518,3463.2,3463.1,15.6723]
[1762889738206,8.03626806,3463.2,3463.1,15.6723]
[1762889738412,5.14876518,3463.2,3463.1,15.6723]
[1762889738609,6.28250598,3463.2,3463.1,15.1871]
[1762889738813,9.17000886,3463.2,3463.1,15.1871]
[1762889739013,6.28250598,3463.2,3463.1,15.1871]
[1762889739207,1.40021169,3463.2,3463.1,15.1871]
[1762889739423,6.28250598,3463.2,3463.1,15.6723]
[1762889741598,6.28250598,3463.2,3463.1,15.1871]
[1762889742530,14.17980315,3463.2,3463.1,14.501]
[1762889743239,14.17980315,3463.2,3463.1,0.001]
[1762889743240,14.30730315,3463.2,3463.1,0.001]
[1762889743749,14.30730315,3463.2,3462.5,0.001]
[1762889743750,4.02174403,3462.6,3462.5,0.001]
[1762889743899,14.8473035,3462.6,3462.5,0.001]
[1762889744331,2.88856069,3462.0,3461.7,14.5]
[1762889744536,6.01603509,3461.8,3461.7,14.5]
[1762889744773,6.94950598,3461.8,3461.7,14.5]
[1762889744982,6.94950598,3461.8,3461.7,14.9862]
[1762889745483,6.28250598,3461.8,3461.7,14.9862]
[1762889745645,1.40021169,3461.8,3461.7,15.4714]
[1762889745845,1.40021169,3461.8,3461.7,18.86015408]
[1762889746082,1.40021169,3461.8,3461.7,15.9714]
[1762889746388,6.28250598,3461.8,3461.7,15.9714]
[1762889746718,6.28250598,3461.8,3461.7,15.4714]
[1762889747049,1.40021169,3461.8,3461.7,18.36015408]
[1762889748151,0.26647089,3461.8,3461.7,21.50726527]
[1762889748351,0.26647089,3461.8,3461.7,22.17426527]
[1762889751633,0.26647089,3461.8,3461.7,21.50726527]
[1762889751762,0.26647089,3461.8,3461.7,15.4862]
[1762889752158,0.26647089,3461.8,3461.7,15.0]
[1762889752456,0.39397089,3461.8,3461.7,14.5]
[1762889752975,3.28264152,3461.8,3461.7,14.5]
[1762889753305,11.08508476,3461.8,3461.7,14.5]
[1762889753461,2.88886279,3461.6,3461.0,0.8551]
[1762889753661,10.07884396,3461.8,3461.0,0.8551]
[1762889753662,3.15539653,3461.5,3461.0,0.8551]
[1762889753871,0.26647089,3461.4,3461.1,14.5]
[1762889754071,0.26647089,3461.3,3461.1,14.5]
[1762889754293,0.26647089,3461.2,3461.1,14.5]
[1762889754477,0.26647089,3461.2,3461.1,18.36065486]
[1762889755702,0.26647089,3461.2,3461.1,18.86065486]
[1762889757532,0.26647089,3461.2,3461.1,21.52666944]
[1762889757733,0.26647089,3461.2,3461.1,22.19366944]
[1762889759023,0.26647089,3461.2,3461.1,21.52666944]
[1762889759221,0.26647089,3461.2,3461.1,22.19366944]
[1762889759740,4.02192759,3462.4,3461.9,0.5]
[1762889759955,0.26655597,3462.3,3461.9,0.5]
[1762889760117,0.26655597,3462.2,3461.9,0.5]
[1762889760438,0.1275,3462.0,3461.8,0.667]
[1762889760643,4.02196393,3462.4,3461.9,14.5]
[1762889760793,0.26659924,3462.3,3461.9,14.5]
[1762889760997,0.26659924,3462.2,3461.9,17.3885867]
[1762889761307,0.26659924,3462.1,3461.9,14.5]
[1762889761507,0.26659924,3462.0,3461.9,14.5]
[1762889761704,0.26659924,3462.0,3461.9,17.85178719]
[1762889762026,0.26659924,3462.0,3461.9,15.4136]
[1762889762543,0.26659924,3462.0,3461.9,18.30218719]
[1762889762912,0.26659924,3462.0,3461.9,18.80218719]
[1762889763104,0.26659924,3462.0,3461.9,15.9136]
[1762889764708,0.26659924,3462.0,3461.9,14.5]
[1762889765318,0.26659924,3462.0,3461.9,14.9632]
[1762889766667,0.26659924,3462.0,3461.9,14.5]
[1762889767344,0.26659924,3462.0,3461.9,15.9136]
[1762889767505,0.26659924,3462.0,3461.9,20.46024719]
[1762889768107,0.26659924,3462.0,3461.9,17.57166]
[1762889768306,0.26659924,3462.0,3461.9,18.80218719]
[1762889768554,0.26659924,3462.0,3461.9,15.9136]
[1762889768761,0.39409924,3462.0,3461.9,15.167]
[1762889768959,5.27990731,3462.0,3461.9,15.167]
[1762889769608,5.27990731,3462.0,3461.9,14.5]
[1762889770112,9.42965186,3462.0,3461.9,14.5]
[1762889771069,9.30215186,3462.0,3461.9,14.5]
[1762889772476,6.41364811,3462.0,3461.9,14.5]
[1762889772640,9.30363956,3462.0,3461.9,14.5]
[1762889773047,9.17613956,3462.0,3461.9,14.5]
[1762889773574,9.30363956,3462.0,3461.9,14.5]
[1762889775367,9.43113956,3462.0,3461.9,14.5]
[1762889776668,6.28763581,3462.0,3461.9,14.5]
[1762889776840,1.40182774,3462.0,3461.9,16.5806]
[1762889777044,1.40182774,3462.0,3461.9,19.46918719]
[1762889777245,0.26808694,3462.0,3461.9,19.46918719]
[1762889777977,0.26808694,3462.0,3461.9,16.5806]
[1762889778355,0.26808694,3462.0,3461.9,19.46918719]
[1762889778559,0.26808694,3462.0,3461.9,16.5806]
[1762889778766,0.26808694,3462.0,3461.9,15.9136]
[1762889779082,0.26808694,3462.0,3461.9,16.5806]
[1762889779281,5.28139501,3462.0,3461.9,15.167]
[1762889779471,9.84452906,3462.0,3461.9,14.5]
[1762889779988,6.95602531,3462.0,3461.9,14.5]
[1762889780189,6.28763581,3462.0,3461.9,14.9632]
[1762889780485,6.28763581,3462.0,3461.9,15.4146]
[1762889780486,1.40182774,3462.0,3461.9,15.4146]
[1762889780650,6.28763581,3462.0,3461.9,15.4146]
[1762889781382,6.28763581,3462.0,3461.9,15.9146]
[1762889781942,6.28763581,3462.0,3461.9,16.5816]
[1762889782570,6.28763581,3462.0,3461.9,16.1312]
[1762889782769,6.28763581,3462.0,3461.9,15.6312]
[1762889783449,6.28763581,3462.0,3461.9,16.0816]
[1762889784072,9.17613956,3462.0,3461.9,14.9642]
[1762889784387,9.17613956,3462.0,3461.9,14.501]
[1762889784585,9.30363956,3462.0,3461.9,14.501]
[1762889785147,6.28763581,3462.0,3461.9,14.501]
[1762889785561,9.17613956,3462.0,3461.9,14.501]
[1762889785894,6.28763581,3462.0,3461.9,14.501]
[1762889786786,1.40182774,3462.0,3461.9,16.6378]
[1762889787102,1.40182774,3462.0,3461.9,16.1378]
[1762889787658,1.40182774,3462.0,3461.9,15.6534]
[1762889788792,1.40182774,3462.0,3461.9,14.9864]
[1762889788968,1.40182774,3462.0,3461.9,15.6534]
[1762889789871,1.40182774,3462.0,3461.9,15.168]
[1762889790570,1.40182774,3462.0,3461.9,15.6534]
[1762889790772,6.28763581,3462.0,3461.9,16.1378]
[1762889791111,6.28763581,3462.0,3461.9,15.6534]
[1762889791468,6.41513581,3462.0,3461.9,14.501]
[1762889791670,9.30363956,3462.0,3461.9,14.501]
[1762889791966,9.30363956,3462.0,3461.9,0.001]
[1762889792167,14.31694763,3462.0,3461.9,0.001]
[1762889792362,2.88883753,3461.6,3461.5,0.001]
[1762889792594,14.85678141,3461.6,3461.5,0.001]
[1762889792799,14.98428141,3461.6,3461.5,0.001]
[1762889793097,11.88544635,3461.6,3461.5,0.001]
[1762889796498,11.61735941,3461.6,3461.5,0.001]
[1762889796802,2.88908791,3461.3,3461.2,0.001]
[1762889797005,5.21238601,3461.3,3461.2,0.001]
[1762889798507,2.88925486,3461.1,3460.8,0.001]
[1762889798681,10.6959437,3460.9,3460.8,0.001]
[1762889798885,11.31700649,3460.9,3460.8,0.001]
[1762889799079,11.44450649,3460.9,3460.8,0.001]
[1762889801489,11.31700649,3460.9,3460.8,0.001]
[1762889801816,11.06200649,3460.9,3460.8,0.4864]
[1762889802018,11.06200649,3460.9,3460.8,0.9708]
[1762889802019,1.4012981,3460.9,3460.8,0.9708]
[1762889802524,4.41821992,3460.9,3460.8,0.001]
[1762889802724,4.41821992,3460.9,3460.8,14.501]